Cogmind - Beta 11 *** ADVENTURER MODE // 2022.03.20 @ 19:43:08 Player: Terra Result: Destroyed by Y-45 Defender with Beam Rifle Performance ------------- Evolutions (2) 1000 Regions Visited (4) 800 Robots Destroyed (60) 300 Value Destroyed (1166) 1166 Prototype IDs (3) 60 Alien Tech Used (0) 0 Bonus (41) 41 TOTAL SCORE: 3367 Bonus ------- High Alert Combat Kills 41 Cogmind --------- Core Integrity 0/550 Matter 462/500 Energy 133/150 System Corruption 5% Temperature Cool (24) Movement Rolling (123) Ox2 Location -8/Materials Parts ------- > --- POWER (2) -------- Light Ion Engine Light Ion Engine > --- PROPULSION (3) --- Wheel Compact Wheel Compact Wheel > --- UTILITY (4) ------ Huge Storage Unit High-capacity Matter Pod Improved Terrain Scanner Hacking Suite > --- WEAPON (2) ------- Heavy Particle Gun Heavy Particle Gun > --- INVENTORY (25) --- Wheel Medium Storage Unit Improved Terrain Scan Processor EM Pulse Gun Mining Laser Peak State ------------ > --- POWER ------------ Light Ion Engine Light Deuterium Engine > --- PROPULSION ------- Cesium-ion Thruster Cesium-ion Thruster Improved VTOL Module > --- UTILITY ---------- Heat Sink Huge Storage Unit High-capacity Matter Pod Improved Terrain Scanner > --- WEAPON ----------- Heavy Particle Gun Heavy Particle Gun > --- INVENTORY -------- Medium Storage Unit Improved Terrain Scan Processor EM Pulse Gun Mining Laser [Rating: 28] Favorites ----------- Power Ion Engine Engine Ion Engine Propulsion Wheel Treads Light Treads Wheel Wheel Hover Unit Airjet Flight Unit Cesium-ion Thruster Utility Sensor Array Device Sensor Array Storage High-capacity Matter Pod Hackware Hacking Suite Protection Light Armor Plating Weapon Beam Cannon Energy Gun Heavy Particle Gun Energy Cannon Beam Cannon Launcher Rocket Launcher Build | -11 -10 -9 -9 -8 ------- Run | Scr Mat Mat Min Mat Slots Evolved 4 | . . 2 . 2 Power 1 | . . . . 1 Propulsion 1 | . . 1 . . Utility 2 | . . 1 . 1 Weapon . | . . . . . Parts Attached 45 | 7 4 7 . 27 Power 6 | 1 . 1 . 4 Engine 6 | 1 . 1 . 4 Core . | . . . . . Reactor . | . . . . . Propulsion 14 | 2 . 3 . 9 Treads 2 | . . . . 2 Leg . | . . . . . Wheel 6 | 2 . . . 4 Hover 3 | . . 3 . . Flight 3 | . . . . 3 Utility 12 | 2 2 2 . 6 Device 5 | 1 2 . . 2 Storage 5 | 1 . 2 . 2 Processor . | . . . . . Hackware 1 | . . . . 1 Protection 1 | . . . . 1 Artifact . | . . . . . Weapon 13 | 2 2 1 . 8 Energy Gun 10 | 2 1 . . 7 Energy Cannon 1 | . 1 . . . Ballistic Gun . | . . . . . Ballistic Cannon . | . . . . . Launcher 2 | . . 1 . 1 Special Weapon . | . . . . . Impact Weapon . | . . . . . Slashing Weapon . | . . . . . Piercing Weapon . | . . . . . Special Melee Weapon . | . . . . . Unidentified Prototypes 3 | . . . . 3 Corrupted Parts 1 | . . . . 1 System Corruption 5 | . . . . 5 Parts Lost 18 | . . . . 18 Power 3 | . . . . 3 Propulsion 5 | . . . . 5 Utility 3 | . . . . 3 Weapon 7 | . . . . 7 Highest Loss Streak 12 | . . . . 12 To Critical Strikes . | . . . . . Average Slot Usage (%) 85 | . 100 90 100 75 Engine 11 | . 14 11 11 10 Treads 1 | . . . . 3 Wheel 10 | . 28 18 . 4 Hover 6 | . . 5 33 2 Flight 4 | . . . . 7 Device 17 | . 26 22 22 13 Storage 13 | . 1 11 11 18 Energy Gun 10 | . 16 4 . 12 Energy Cannon 5 | . 11 11 11 . Launcher 3 | . . 6 11 . Naked Turns . | . . . . . Heaviest Build 100 | 14 14 28 28 100 Greatest Support 42 | 20 20 24 24 42 Greatest Overweight (x) 30 | 1 . 2 1 30 Average Overweight (x) 1 | . . . 1 3 Largest Inventory Capacity 25 | 8 8 10 10 25 Average Capacity 14 | 5 5 8 10 21 Most Carried 10 | 5 5 10 10 9 Average Carried 6 | 4 4 7 10 5 Final Capacity 25 | 8 5 10 10 25 Final Carried 10 | 1 5 10 10 5 Class Distribution -------------------- 85% | Mutant 14% | Scavenger-Mutant Dominant Class ---------------- Mutant | -10/Materials Mutant | -9/Materials Mutant | -9/Mines Mutant | -8/Materials Resources | -11 -10 -9 -9 -8 ----------- Run | Scr Mat Mat Min Mat Matter Collected 979 | 95 56 153 17 658 Remotely . | . . . . . Salvage Created 1635 | 98 105 250 22 1160 Parts 103 | 6 16 17 6 58 Haulers Intercepted 1 | . . 1 . . Recyclers Shooed 3 | . . . . 3 Parts Field Recycled . | . . . . . Retrieved Matter . | . . . . . Parts Self-Destructed . | . . . . . Prevented . | . . . . . Kills | -11 -10 -9 -9 -8 ------- Run | Scr Mat Mat Min Mat Combat Hostiles Destroyed 37 | . 6 9 4 18 Guns 16 | . 1 1 . 14 Cannons 7 | . 3 2 1 1 AOE 14 | . 2 6 3 3 Classes Destroyed 12 | 2 2 3 . 5 Worker 4 | . . . . 4 Builder 3 | . . . . 3 Tunneler 1 | 1 . . . . Hauler 1 | . . 1 . . Recycler 6 | 1 . . . 5 Mechanic 1 | . . . . 1 Operator 2 | . . . . 2 Watcher 5 | . 1 2 . 2 Swarmer 21 | . 6 4 4 7 Grunt 9 | . . 3 . 6 Sentry 6 | . . 2 . 4 Hunter 1 | . . . . 1 Best Kill Streak 9 | 2 6 9 4 7 Combat Bots Only 7 | . 6 7 4 6 Max Kills in Single Turn 3 | 1 3 3 3 2 Gunslinging . | . . . . . Exploded 3 | . 2 3 3 2 Melee . | . . . . . Uniques/NPCs Destroyed . | . . . . . Combat | -11 -10 -9 -9 -8 -------- Run | Scr Mat Mat Min Mat Damage Taken 2166 | . 102 156 59 1849 Core 648 | . 51 37 10 550 Absorbed by Shields . | . . . . . Core Remaining (%) 89 | 100 79 . 88 . Volleys Fired 125 | 14 4 18 2 87 Largest 2 | 1 2 2 2 2 Hottest 110 | 40 100 100 93 110 Shots Fired 193 | 14 8 36 4 131 Gun 130 | 14 4 10 . 102 Cannon 42 | . 4 18 2 18 Launcher 21 | . . 8 2 11 Special . | . . . . . Kinetic . | . . . . . Thermal 145 | 14 4 18 2 107 Explosive 21 | . . 8 2 11 Electromagnetic 27 | . 4 10 . 13 Robot Hit Streak 25 | 7 3 8 1 25 Robot Miss Streak 4 | 1 1 1 1 4 Penetration Max . | . . . . . Secondary Targets . | . . . . . Shots Hit Robots 130 | 11 5 24 1 89 Core Hits 89 | 3 7 16 4 59 Critical Kills . | . . . . . Critical Parts Destroyed . | . . . . . Critical Strikes 9 | . . . . 9 Burn 9 | . . . . 9 Melee Attacks . | . . . . . Impact . | . . . . . Slashing . | . . . . . Piercing . | . . . . . Sneak Attacks . | . . . . . Combat Hostiles . | . . . . . Follow-up Attacks . | . . . . . Damage Inflicted 3729 | 115 186 1005 212 2211 Guns 1662 | 115 41 97 . 1409 Cannons 508 | . 54 229 17 208 Explosions 1543 | . 91 679 195 578 Melee . | . . . . . Ramming 16 | . . . . 16 Kinetic . | . . . . . Thermal 1998 | 115 145 264 17 1457 Explosive 1371 | . . 644 195 532 Electromagnetic 344 | . 41 97 . 206 Impact . | . . . . . Slashing . | . . . . . Piercing . | . . . . . Highest Corruption 5 | . . . . 5 Average Corruption 5 | . . . . 5 Corruption Purged . | . . . . . Corruption Blocked . | . . . . . Effects 21 | . . . . 21 Message Errors 7 | . . . . 7 Matter Fused 6 | . . . . 6 Heat Flow Errors 1 | . . . . 1 Energy Discharges 1 | . . . . 1 Data Loss (minor) 2 | . . . . 2 Misfires 2 | . . . . 2 Alerts 1 | . . . . 1 Weapon Failures 1 | . . . . 1 Overload Shots . | . . . . . Overflow Damage 21 | . . 14 . 7 Projectiles 7 | . . . . 7 Explosions 14 | . . 14 . . Melee . | . . . . . Knockbacks . | . . . . . Impact . | . . . . . Kinetic . | . . . . . Secondary . | . . . . . Self-Inflicted Damage 64 | . 21 . 9 34 Shots 3 | . 1 . 1 1 Rammed 6 | . . . . 6 Targets Rammed 6 | . . . . 6 Kicked . | . . . . . Crushed . | . . . . . Highest Temperature 450 | . 129 225 72 450 Average Temperature 93 | . 60 69 38 108 Received Heat Transfer 696 | . 6 69 . 621 Effects 7 | . . . . 7 Shutdowns 5 | . . . . 5 Energy Bleed 1 | . . . . 1 Short Circuit 1 | . . . . 1 Siege Activations . | . . . . . Robots Corrupted . | . . . . . Combat Hostiles . | . . . . . Parts Fried 2 | . . . . 2 Impact Corruptions . | . . . . . Robots Melted . | . . . . . Combat Hostiles . | . . . . . Parts Melted 9 | . . 3 . 6 Heat Transferred 4954 | 275 311 531 37 3800 Parts Sabotaged . | . . . . . Parts Stolen . | . . . . . Parts Stripped . | . . . . . Power Chain Reactions 3 | . 1 1 . 1 Missiles Intercepted . | . . . . . Alert | -11 -10 -9 -9 -8 ------- Run | Scr Mat Mat Min Mat Peak Influence 511 | 10 220 486 295 511 Initial 160 | . 5 79 160 97 Average 264 | 4 67 284 291 323 Maximum Alert Level 2 | . 1 2 1 2 Low Security (%) 32 | 100 97 46 2 9 Level 1 49 | . 2 21 97 67 Level 2 18 | . . 31 . 22 Level 3 . | . . . . . Level 4 . | . . . . . Level 5 . | . . . . . High Security . | . . . . . Max Security . | . . . . . Squads Dispatched 10 | . 1 1 . 8 Investigation 1 | . 1 . . . Extermination . | . . . . . Reinforcement 3 | . . 1 . 2 Assault . | . . . . . Garrison 6 | . . . . 6 Intercept . | . . . . . Searches Triggered . | . . . . . Construction Impeded . | . . . . . Haulers Reinforced . | . . . . . Active Scanning Responses . | . . . . . Cargo Convoy Interrupts . | . . . . . Stealth | -11 -10 -9 -9 -8 --------- Run | Scr Mat Mat Min Mat Distress Signals 6 | . . 2 . 4 Communications Jammed . | . . . . . Distress Signals . | . . . . . Times Spotted 63 | . 7 11 4 41 Peak Tracking Total 6 | . 6 4 4 6 Tactical Retreats 6 | . . . . 6 Traps | -11 -10 -9 -9 -8 ------- Run | Scr Mat Mat Min Mat Traps Triggered 3 | . 1 . . 2 Indirectly . | . . . . . Trap Hack Attempts . | . . . . . Triggered . | . . . . . Disarmed 10 | . 6 4 . . Reprogrammed 4 | . 4 . . . Reused . | . . . . . Traps Extracted . | . . . . . Installed . | . . . . . Triggered . | . . . . . Machines | -11 -10 -9 -9 -8 ---------- Run | Scr Mat Mat Min Mat Machines Disabled 4 | . . . 1 3 Max in Single Turn 2 | . . . 1 2 Machines Sabotaged . | . . . . . Garrisons Compromised . | . . . . . Overloaded Fab Kills . | . . . . . Hacking | -11 -10 -9 -9 -8 --------- Run | Scr Mat Mat Min Mat Machines Accessed 10 | . 7 3 . . Terminals 8 | . 5 3 . . Fabricators . | . . . . . Repair Stations . | . . . . . Recycling Units 2 | . 2 . . . Scanalyzers . | . . . . . Garrison Access . | . . . . . Total Hacks 22 | . 12 10 . . Successful 13 | . 9 4 . . Failed 9 | . 3 6 . . Catastrophic 1 | . . 1 . . Database Lockouts . | . . . . . Manual 22 | . 12 10 . . Terminals 20 | . 10 10 . . Fabricators . | . . . . . Repair Stations . | . . . . . Recycling Units 2 | . 2 . . . Scanalyzers . | . . . . . Garrison Access . | . . . . . Terminal Hacks 3 | . 2 1 . . Disarm Traps 2 | . 1 1 . . Reprogram Traps 1 | . 1 . . . Fabricator Hacks . | . . . . . Repair Station Hacks . | . . . . . Recycling Unit Hacks . | . . . . . Scanalyzer . | . . . . . Garrison Access Hacks . | . . . . . Unauthorized Hacks 9 | . 6 3 . . Terminals 7 | . 4 3 . . Botnet 7 | . 4 3 . . Fabricators . | . . . . . Repair Stations . | . . . . . Recycling Units 2 | . 2 . . . Mask 1 | . 1 . . . Tunnel 1 | . 1 . . . Scanalyzers . | . . . . . Garrison Access . | . . . . . Data Cores Recovered . | . . . . . Used . | . . . . . Hacking Detections 6 | . 4 2 . . Full Trace Events . | . . . . . Feedback Events . | . . . . . Feedback Blocked . | . . . . . Robot Schematics Acquired . | . . . . . Robots Built . | . . . . . Authchips . | . . . . . Time . | . . . . . Total Robot Build Rating . | . . . . . Part Schematics Acquired . | . . . . . Parts Built . | . . . . . Authchips . | . . . . . Time . | . . . . . Total Part Build Rating . | . . . . . Parts Repaired . | . . . . . Time . | . . . . . Parts Recycled . | . . . . . Recycled Matter . | . . . . . Retrieved Matter . | . . . . . Retrieved Components . | . . . . . Parts Scanalyzed . | . . . . . Part Schematics Acquired . | . . . . . Parts Damaged . | . . . . . Bothacking | -11 -10 -9 -9 -8 ------------ Run | Scr Mat Mat Min Mat Used RIF Installer . | . . . . . Robots Hacked . | . . . . . Non-combat . | . . . . . Combat . | . . . . . Robot Hacks Applied . | . . . . . Relay Couplers Released . | . . . . . Fabnet Peak Effective % . | . . . . . Robots Rewired . | . . . . . Allies Hacked . | . . . . . Hacks Repelled . | . . . . . Allies | -11 -10 -9 -9 -8 -------- Run | Scr Mat Mat Min Mat Total Allies . | . . . . . Largest Group . | . . . . . Highest-Rated Group . | . . . . . Highest-Rated Ally . | . . . . . Total Orders . | . . . . . Ally Attacks . | . . . . . Total Damage . | . . . . . Kills . | . . . . . Allies Corrupted . | . . . . . Allies Melted . | . . . . . Intel | -11 -10 -9 -9 -8 ------- Run | Scr Mat Mat Min Mat Robot Analysis Total . | . . . . . Derelict Logs Recovered 1 | . . . 1 . Drone Launches . | . . . . . Drone Recoveries . | . . . . . Exploration | -11 -10 -9 -9 -8 ------------- Run | Scr Mat Mat Min Mat Turns Passed 1550 | 64 206 323 171 786 Spaces Moved 849 | 29 224 274 148 174 Core 30 | 25 . . . 5 Treads 46 | . . . . 46 Legs . | . . . . . Wheels 529 | 4 224 228 . 73 Hover 212 | . . 46 148 18 Flight 32 | . . . . 32 Fastest Speed 50 | 50 80 52 112 112 Average Speed 127 | 78 80 88 112 271 Slowest Speed 1550 | 100 80 190 112 1550 Overloaded Moves . | . . . . . Propulsion Burnouts . | . . . . . Robots Hopped . | . . . . . Cave-ins Triggered . | . . . . . Exploration Rate (%) 33 | 3 50 35 47 30 Regions Visited 4 Branch Regions 1 Pre-discovered Areas 1 | . 1 . . . Known Exits Taken . | . . . . . Unknown Exits Taken 4 | 1 1 1 1 . Scrap Searched 1 | . . . 1 . Spaces Dug . | . . . . . Terrain Destroyed 83 | . 2 47 16 18 Melee . | . . . . . Projectile . | . . . . . AOE 83 | . 2 47 16 18 Terrain Rammed . | . . . . . Walls Destroyed . | . . . . . Machines Disabled . | . . . . . Actions | -11 -10 -9 -9 -8 --------- Run | Scr Mat Mat Min Mat Total 1114 | 54 241 319 149 351 Wait 38 | . 2 7 . 29 Move 845 | 28 223 273 147 174 Hop . | . . . . . Pick Up 40 | 5 6 8 . 21 Fast Attach 6 | 3 . 3 . . Attach 29 | 4 . 1 . 24 Detach . | . . . . . Swap 10 | . 4 3 . 3 Drop 13 | . 2 6 . 5 Fire 125 | 14 4 18 2 87 Melee . | . . . . . Ram 4 | . . . . 4 Kick . | . . . . . Crush 2 | . . . . 2 Escape Stasis . | . . . . . Rewire 2 | . . . . 2 Trap . | . . . . . Miscellaneous . | . . . . . Route ------- -11/Scrapyard -10/Materials -9/Materials -9/Mines -8/Materials History --------- Turn | Location | Event 44 | -11/Scrapyard | Discovered new exit (range 16) 65 | -11/Scrapyard | Entered Materials 247 | -10/Materials | Discovered new exit (range 8) 271 | -10/Materials | Entered another Materials area 271 | -9/Materials | Evolved 2 slots: Propulsion x1, Utility x1 311 | -9/Materials | Build established: Mutant 457 | -9/Materials | Destroyed 7 combat bots 511 | -9/Materials | Discovered new exit (range 9) 594 | -9/Materials | Entered Mines 676 | -9/Mines | Found a hidden stash of uninstalled traps 714 | -9/Mines | Learned location of 1 exit from Proximity Caves 752 | -9/Mines | Discovered new exit (range 9) 765 | -9/Mines | Entered Materials 765 | -8/Materials | Evolved 2 slots: Power x1, Utility x1 883 | -8/Materials | Core integrity fell below 50% 932 | -8/Materials | Lost 12 parts (2p3n2u5w) 1020 | -8/Materials | Garrison activated, responded to threat 1133 | -8/Materials | Core integrity fell below 20% 1551 | -8/Materials | Destroyed by Y-45 Defender with Beam Rifle Last Messages --------------- R-06 Scavenger collects Imp. Hover Unit. R-06 Scavenger collects Imp. Signal Interpreter. G&X#71MYAEAONEENMJ%T=31FWL&RT52